[Event "44th Chess Olympiad Women 2022"]
[Site "Chennai"]
[Date "2022.08.05"]
[Round "7.65"]
[White "Mpinganjira, Ellen"]
[Black "Almusawi, Maram"]
[Result "0-1"]
[WhiteElo "1334"]
[BlackElo "1349"]
[Annotator "NA RC"]
[PlyCount "66"]
[EventDate "2022.??.??"]
[TimeControl "60"]

1. e4 {[%emt 0:00:03]} c6 {[%emt 0:00:57]} 2. d4 {[%emt 0:00:39]} d5 {[%emt 0:
00:00]} 3. exd5 {[%emt 0:00:20]} cxd5 {[%emt 0:00:31]} 4. Nf3 {[%emt 0:00:42]}
Nf6 {[%emt 0:00:57]} 5. Be2 {[%emt 0:02:19]} Bf5 {[%emt 0:03:27]} 6. Bg5 {
[%emt 0:02:26]} e6 {[%emt 0:01:21]} 7. O-O {[%emt 0:01:22]} Be7 {[%emt 0:01:20]
} 8. Nbd2 {[%emt 0:02:04]} O-O {[%emt 0:01:01]} 9. Re1 {[%emt 0:00:46]} Nc6 {
[%emt 0:01:32]} 10. Nf1 {[%emt 0:00:53]} Bg4 {[%emt 0:05:05]} 11. c3 {[%emt 0:
00:00]} Re8 {[%emt 0:01:02]} 12. Ng3 {[%emt 0:02:27]} Nh5 {[%emt 0:07:28]} 13.
Bxe7 {[%emt 0:02:02]} Qxe7 {[%emt 0:00:24]} 14. Nh1 {[%emt 0:02:32]} Nf4 {
[%emt 0:03:45]} 15. Bf1 {[%emt 0:04:48]} Qf6 {[%emt 0:00:42]} 16. Be2 {[%emt 0:
00:00]} Nxe2+ {[%emt 0:02:18]} 17. Qxe2 {[%emt 0:00:33]} e5 {[%emt 0:00:35]}
18. h3 {[%emt 0:04:00]} Bxf3 {[%emt 0:02:16]} 19. Qxf3 {[%emt 0:02:26]} Qxf3 {
[%emt 0:00:22]} 20. gxf3 {[%emt 0:00:06]} exd4 {[%emt 0:00:08]} 21. Rxe8+ {
[%emt 0:05:48]} Rxe8 {[%emt 0:00:12]} 22. cxd4 {[%emt 0:02:29]} Nxd4 {[%emt 0:
00:00]} 23. Kg2 {[%emt 0:02:25]} Re2 {[%emt 0:03:41]} 24. b3 {[%emt 0:06:42]}
Rd2 {[%emt 0:06:01]} 25. Ng3 {[%emt 0:07:17]} g6 {[%emt 0:04:24]} 26. Nf1 {
[%emt 0:01:21]} Rd3 {[%emt 0:03:57]} 27. Ne3 {[%emt 0:01:58]} Ne2 {[%emt 0:00:
00]} 28. h4 {[%emt 0:09:01]} d4 {[%emt 0:03:23]} 29. Nc4 {[%emt 0:10:48]} Rc3 {
[%emt 0:05:29]} 30. Rd1 {[%emt 0:03:00]} Rc1 {[%emt 0:07:28]} 31. Rd2 {[%emt 0:
00:00]} d3 {[%emt 0:01:55]} 32. Ne5 {[%emt 0:03:04]} Rc2 {[%emt 0:02:10]} 33.
Rxc2 {[%emt 0:03:27]} dxc2 {[%emt 0:00:12]} 0-1

[Event "44th Chess Olympiad Women 2022"]
[Site "Chennai"]
[Date "2022.08.05"]
[Round "7.66"]
[White "Yavo Tchetche, Marie"]
[Black "Nepando, Jolly"]
[Result "1-0"]
[WhiteElo "1313"]
[BlackElo "1389"]
[Annotator "NA"]
[PlyCount "95"]
[EventDate "2022.??.??"]
[TimeControl "60"]

1. d4 {[%emt 0:00:38]} d5 {[%emt 0:00:03]} 2. Bf4 {[%emt 0:02:51]} Nf6 {
[%emt 0:02:00]} 3. h3 {[%emt 0:01:17]} e6 {[%emt 0:01:39]} 4. Nf3 {[%emt 0:00:
00]} Nc6 {[%emt 0:03:09]} 5. e3 {[%emt 0:01:59]} a6 {[%emt 0:00:15]} 6. a3 {
[%emt 0:00:58]} Bd6 {[%emt 0:02:01]} 7. Bxd6 {[%emt 0:01:34]} Qxd6 {[%emt 0:00:
00]} 8. Bd3 {[%emt 0:01:42]} O-O {[%emt 0:08:11]} 9. O-O {[%emt 0:01:55]} e5 {
[%emt 0:02:32]} 10. dxe5 {[%emt 0:00:36]} Nxe5 {[%emt 0:00:07]} 11. Be2 {
[%emt 0:01:36]} c5 {[%emt 0:13:17]} 12. c4 {[%emt 0:03:23]} Rd8 {[%emt 0:05:19]
} 13. cxd5 {[%emt 0:00:46]} Nxd5 {[%emt 0:00:05]} 14. e4 {[%emt 0:01:15]} Nxf3+
{[%emt 0:01:16]} 15. Bxf3 {[%emt 0:01:20]} Nf4 {[%emt 0:01:13]} 16. Nc3 {
[%emt 0:01:56]} Rb8 {[%emt 0:11:07]} 17. Qxd6 {[%emt 0:01:47]} Rxd6 {[%emt 0:
00:00]} 18. Rfd1 {[%emt 0:01:26]} Rxd1+ {[%emt 0:01:46]} 19. Rxd1 {[%emt 0:00:
00]} Be6 {[%emt 0:00:05]} 20. Nd5 {[%emt 0:01:46]} Ng6 {[%emt 0:03:31]} 21. Nc7
{[%emt 0:02:33]} Bb3 {[%emt 0:00:20]} 22. Rd3 {[%emt 0:01:45]} c4 {[%emt 0:00:
00]} 23. Rd6 {[%emt 0:05:14]} Ne5 {[%emt 0:01:00]} 24. Be2 {[%emt 0:01:39]} h6
{[%emt 0:04:30]} 25. f4 {[%emt 0:00:26]} Nc6 {[%emt 0:01:18]} 26. Nd5 {[%emt 0:
00:00]} Rd8 {[%emt 0:05:37]} 27. Rxd8+ {[%emt 0:02:03]} Nxd8 {[%emt 0:00:00]}
28. Kf2 {[%emt 0:02:28]} Ne6 {[%emt 0:01:00]} 29. Ke3 {[%emt 0:01:10]} Kf8 {
[%emt 0:04:37]} 30. Nb6 {[%emt 0:01:08]} Nc5 {[%emt 0:05:05]} 31. Nxc4 {
[%emt 0:05:49]} b5 {[%emt 0:04:05]} 32. Na5 {[%emt 0:02:30]} Bc2 {[%emt 0:00:
00]} 33. e5 {[%emt 0:00:32]} Na4 {[%emt 0:00:55]} 34. b4 {[%emt 0:02:23]} Bg6 {
[%emt 0:03:16]} 35. Kd4 {[%emt 0:01:17]} Ke7 {[%emt 0:00:49]} 36. Bf3 {[%emt 0:
00:00]} Nb2 {[%emt 0:03:41]} 37. Bb7 {[%emt 0:01:19]} Nd3 {[%emt 0:00:38]} 38.
g3 {[%emt 0:42:21]} Nf2 {[%emt 0:00:25]} 39. h4 {[%emt 0:00:00]} Ne4 {[%emt 0:
00:00]} 40. Bxe4 {[%emt 0:00:14]} Bxe4 {[%emt 0:00:08]} 41. Kxe4 {[%emt 0:00:
00]} Ke6 {[%emt 0:30:52]} 42. f5+ {[%emt 0:00:00]} Kd7 {[%emt 0:00:24]} 43. Kd5
{[%emt 0:00:00]} h5 {[%emt 0:00:03]} 44. e6+ {[%emt 0:00:58]} fxe6+ {[%emt 0:
00:00]} 45. fxe6+ {[%emt 0:00:00]} Ke7 {[%emt 0:00:28]} 46. Nc6+ {[%emt 0:00:
00]} Ke8 {[%emt 0:00:01]} 47. Kd6 {[%emt 0:00:00]} g6 {[%emt 0:00:00]} 48. Nb8
{[%emt 0:00:00]} 1-0

[Event "44th Chess Olympiad Women 2022"]
[Site "Chennai"]
[Date "2022.08.05"]
[Round "7.69"]
[White "Estur, Grace Co"]
[Black "Johnson, Daijah"]
[Result "1-0"]
[WhiteElo "1472"]
[BlackElo "1480"]
[Annotator "NA RC"]
[PlyCount "101"]
[EventDate "2022.??.??"]
[TimeControl "60"]

1. d4 {[%emt 0:00:05]} Nf6 {[%emt 0:00:09]} 2. b3 {[%emt 0:00:17]} g6 {[%emt 0:
00:00]} 3. Bb2 {[%emt 0:00:09]} Bg7 {[%emt 0:00:12]} 4. Nd2 {[%emt 0:00:27]} d5
{[%emt 0:01:41]} 5. e3 {[%emt 0:03:16]} O-O {[%emt 0:02:04]} 6. c4 {[%emt 0:00:
00]} c6 {[%emt 0:04:39]} 7. Bd3 {[%emt 0:02:52]} Re8 {[%emt 0:02:34]} 8. Ne2 {
[%emt 0:03:01]} Nbd7 {[%emt 0:08:40]} 9. O-O {[%emt 0:01:50]} e5 {[%emt 0:00:
00]} 10. Rc1 {[%emt 0:09:26]} e4 {[%emt 0:03:32]} 11. Bb1 {[%emt 0:02:57]} Nf8
{[%emt 0:01:55]} 12. h3 {[%emt 0:06:48]} Bd7 {[%emt 0:05:33]} 13. Nf4 {[%emt 0:
00:00]} Ne6 {[%emt 0:04:08]} 14. Ne2 {[%emt 0:01:52]} Kh8 {[%emt 0:06:03]} 15.
b4 {[%emt 0:01:07]} a6 {[%emt 0:07:25]} 16. Qb3 {[%emt 0:04:33]} Rc8 {[%emt 0:
00:00]} 17. Nc3 {[%emt 0:04:33]} Nc7 {[%emt 0:02:33]} 18. Na4 {[%emt 0:12:32]}
b5 {[%emt 0:03:27]} 19. cxb5 {[%emt 0:01:39]} Nxb5 {[%emt 0:01:38]} 20. Nc5 {
[%emt 0:03:41]} Nc7 {[%emt 0:04:33]} 21. Nxd7 {[%emt 0:02:30]} Qxd7 {[%emt 0:
00:00]} 22. Rc2 {[%emt 0:03:12]} Nb5 {[%emt 0:06:43]} 23. a4 {[%emt 0:01:04]}
Na7 {[%emt 0:01:16]} 24. Rfc1 {[%emt 0:03:47]} Rb8 {[%emt 0:01:35]} 25. Qc3 {
[%emt 0:05:41]} Bf8 {[%emt 0:01:50]} 26. Ba3 {[%emt 0:01:04]} Bd6 {[%emt 0:00:
00]} 27. Nb3 {[%emt 0:01:20]} Qe7 {[%emt 0:01:23]} 28. Nc5 {[%emt 0:00:31]}
Bxc5 {[%emt 0:00:34]} 29. dxc5 {[%emt 0:00:45]} Kg8 {[%emt 0:02:01]} 30. Bb2 {
[%emt 0:00:30]} Kg7 {[%emt 0:01:28]} 31. Rf1 {[%emt 0:01:04]} Qd8 {[%emt 0:00:
00]} 32. Rd2 {[%emt 0:00:59]} Re6 {[%emt 0:01:35]} 33. f3 {[%emt 0:03:16]} Kf8
{[%emt 0:01:06]} 34. Rdf2 {[%emt 0:02:53]} Rb7 {[%emt 0:01:53]} 35. Qd4 {
[%emt 0:01:20]} Ke8 {[%emt 0:01:47]} 36. fxe4 {[%emt 0:00:58]} Ng8 {[%emt 0:00:
00]} 37. Qh8 {[%emt 0:01:13]} Kd7 {[%emt 0:01:24]} 38. exd5 {[%emt 0:01:56]}
cxd5 {[%emt 0:02:19]} 39. Rxf7+ {[%emt 0:00:55]} Kc6 {[%emt 0:01:46]} 40. Rxb7
{[%emt 0:01:39]} Kxb7 {[%emt 0:00:12]} 41. Qxh7+ {[%emt 0:31:14]} Re7 {[%emt 0:
00:00]} 42. Qxg6 {[%emt 0:00:34]} Rxe3 {[%emt 0:00:58]} 43. Rf7+ {[%emt 0:00:
00]} Re7 {[%emt 0:00:34]} 44. Rxe7+ {[%emt 0:00:41]} Nxe7 {[%emt 0:00:07]} 45.
Qe6 {[%emt 0:00:00]} d4 {[%emt 0:00:00]} 46. Qb6+ {[%emt 0:00:00]} Qxb6 {
[%emt 0:00:00]} 47. cxb6 {[%emt 0:00:00]} Kxb6 {[%emt 0:00:00]} 48. Bxd4+ {
[%emt 0:00:00]} Kb7 {[%emt 0:00:00]} 49. Be4+ {[%emt 0:00:00]} Nec6 {[%emt 0:
00:00]} 50. Bxa7 {[%emt 0:00:00]} Kxa7 {[%emt 0:00:00]} 51. Bxc6 {[%emt 0:00:
00]} 1-0

[Event "44th Chess Olympiad Women 2022"]
[Site "Chennai"]
[Date "2022.08.05"]
[Round "7.69"]
[White "Ollet, Myra"]
[Black "Pinder, Trinity"]
[Result "0-1"]
[WhiteElo "1480"]
[BlackElo "1183"]
[Annotator "NA RC"]
[PlyCount "122"]
[EventDate "2022.??.??"]
[TimeControl "60"]

1. d4 {[%emt 0:00:05]} d5 {[%emt 0:00:13]} 2. Bf4 {[%emt 0:00:09]} c5 {[%emt 0:
00:00]} 3. c3 {[%emt 0:00:27]} Nc6 {[%emt 0:00:22]} 4. e3 {[%emt 0:00:17]} cxd4
{[%emt 0:00:54]} 5. cxd4 {[%emt 0:00:15]} Nf6 {[%emt 0:00:28]} 6. Nd2 {[%emt 0:
00:00]} e6 {[%emt 0:00:25]} 7. a3 {[%emt 0:00:14]} Bd6 {[%emt 0:00:28]} 8. Bg3
{[%emt 0:00:14]} O-O {[%emt 0:01:15]} 9. Ngf3 {[%emt 0:00:13]} b6 {[%emt 0:00:
00]} 10. Bb5 {[%emt 0:00:29]} Bb7 {[%emt 0:00:18]} 11. Ne5 {[%emt 0:04:16]}
Bxe5 {[%emt 0:04:00]} 12. dxe5 {[%emt 0:00:35]} Ne4 {[%emt 0:00:39]} 13. Bxc6 {
[%emt 0:00:36]} Bxc6 {[%emt 0:01:20]} 14. Nb3 {[%emt 0:00:45]} Ba4 {[%emt 0:00:
00]} 15. Qd3 {[%emt 0:00:17]} Nc5 {[%emt 0:06:50]} 16. Nxc5 {[%emt 0:00:51]}
bxc5 {[%emt 0:00:52]} 17. O-O {[%emt 0:01:01]} Qb6 {[%emt 0:01:59]} 18. Qd2 {
[%emt 0:01:14]} Rfd8 {[%emt 0:01:22]} 19. Bh4 {[%emt 0:00:20]} Rd7 {[%emt 0:00:
00]} 20. b4 {[%emt 0:02:27]} c4 {[%emt 0:00:00]} 21. Qc3 {[%emt 0:00:35]} Rc8 {
[%emt 0:00:30]} 22. f4 {[%emt 0:02:03]} d4 {[%emt 0:02:18]} 23. exd4 {[%emt 0:
00:00]} Qxd4+ {[%emt 0:00:24]} 24. Qxd4 {[%emt 0:00:20]} Rxd4 {[%emt 0:00:20]}
25. Be7 {[%emt 0:00:27]} c3 {[%emt 0:02:28]} 26. Bc5 {[%emt 0:01:32]} Rd7 {
[%emt 0:01:47]} 27. Bd6 {[%emt 0:06:36]} f6 {[%emt 0:04:15]} 28. Kf2 {[%emt 0:
00:00]} g5 {[%emt 0:01:36]} 29. g3 {[%emt 0:00:33]} Rc4 {[%emt 0:03:59]} 30.
Ke3 {[%emt 0:00:44]} c2 {[%emt 0:05:00]} 31. Rfc1 {[%emt 0:07:46]} gxf4+ {
[%emt 0:02:56]} 32. gxf4 {[%emt 0:00:28]} f5 {[%emt 0:00:16]} 33. Rg1+ {
[%emt 0:00:41]} Rg7 {[%emt 0:00:37]} 34. Rxg7+ {[%emt 0:00:47]} Kxg7 {[%emt 0:
00:00]} 35. Rg1+ {[%emt 0:00:31]} Kf7 {[%emt 0:00:23]} 36. Rc1 {[%emt 0:01:02]}
Rc3+ {[%emt 0:01:01]} 37. Kd4 {[%emt 0:00:25]} Rxa3 {[%emt 0:01:09]} 38. b5 {
[%emt 0:00:51]} Ra2 {[%emt 0:01:03]} 39. Bb4 {[%emt 0:00:26]} Bxb5 {[%emt 0:00:
00]} 40. Bd2 {[%emt 0:00:19]} Ba4 {[%emt 0:03:26]} 41. Kc3 {[%emt 0:30:06]} a5
{[%emt 0:33:33]} 42. Re1 {[%emt 0:01:38]} Ra3+ {[%emt 0:02:38]} 43. Kb2 {
[%emt 0:00:31]} Rd3 {[%emt 0:00:20]} 44. Kc1 {[%emt 0:03:05]} Bb3 {[%emt 0:00:
00]} 45. Re3 {[%emt 0:00:25]} Rxe3 {[%emt 0:01:07]} 46. Bxe3 {[%emt 0:00:05]}
a4 {[%emt 0:00:15]} 47. Bc5 {[%emt 0:01:05]} Kg6 {[%emt 0:00:30]} 48. Ba3 {
[%emt 0:01:07]} Kh5 {[%emt 0:01:16]} 49. Kd2 {[%emt 0:00:10]} Kg4 {[%emt 0:00:
00]} 50. Ke3 {[%emt 0:00:18]} h5 {[%emt 0:00:33]} 51. Bc1 {[%emt 0:01:45]} Kh3
{[%emt 0:00:41]} 52. Kf3 {[%emt 0:01:44]} Kxh2 {[%emt 0:00:40]} 53. Ba3 {
[%emt 0:01:01]} h4 {[%emt 0:00:23]} 54. Bc1 {[%emt 0:00:21]} Kg1 {[%emt 0:00:
00]} 55. Be3+ {[%emt 0:00:29]} Kf1 {[%emt 0:00:09]} 56. Bc1 {[%emt 0:01:55]}
Ke1 {[%emt 0:01:04]} 57. Kg2 {[%emt 0:00:40]} Kd1 {[%emt 0:00:11]} 58. Ba3 {
[%emt 0:00:05]} c1=Q {[%emt 0:00:19]} 59. Bxc1 {[%emt 0:00:04]} Kxc1 {[%emt 0:
00:00]} 60. Kh3 {[%emt 0:00:04]} a3 {[%emt 0:00:24]} 61. Kxh4 {[%emt 0:00:04]}
a2 {[%emt 0:00:41]} 0-1

[Event "44th Chess Olympiad Women 2022"]
[Site "Chennai"]
[Date "2022.08.05"]
[Round "7.70"]
[White "Roberts, Tallulah"]
[Black "Martins, Katlene Jussara"]
[Result "1-0"]
[WhiteElo "1536"]
[BlackElo "1287"]
[Annotator "NA"]
[PlyCount "83"]
[EventDate "2022.??.??"]
[TimeControl "60"]

1. c4 {[%emt 0:00:02]} e5 {[%emt 0:00:18]} 2. g3 {[%emt 0:00:18]} Nf6 {[%emt 0:
00:00]} 3. Bg2 {[%emt 0:00:05]} Bb4 {[%emt 0:00:43]} 4. a3 {[%emt 0:00:19]} Bc5
{[%emt 0:00:52]} 5. e3 {[%emt 0:00:24]} O-O {[%emt 0:00:46]} 6. Nc3 {[%emt 0:
00:00]} d6 {[%emt 0:01:45]} 7. Nge2 {[%emt 0:00:45]} Be6 {[%emt 0:01:01]} 8.
Bxb7 {[%emt 0:00:29]} Nbd7 {[%emt 0:00:42]} 9. d4 {[%emt 0:01:28]} Bb6 {
[%emt 0:02:56]} 10. Bxa8 {[%emt 0:00:14]} Qxa8 {[%emt 0:00:14]} 11. d5 {
[%emt 0:00:10]} Bh3 {[%emt 0:00:34]} 12. Qc2 {[%emt 0:07:27]} c6 {[%emt 0:00:
00]} 13. Rg1 {[%emt 0:07:59]} cxd5 {[%emt 0:04:06]} 14. Nxd5 {[%emt 0:01:16]}
Nxd5 {[%emt 0:01:46]} 15. cxd5 {[%emt 0:00:12]} Qxd5 {[%emt 0:01:41]} 16. Nc3 {
[%emt 0:14:50]} Qe6 {[%emt 0:04:10]} 17. Bd2 {[%emt 0:09:17]} Nf6 {[%emt 0:00:
00]} 18. O-O-O {[%emt 0:06:53]} Rc8 {[%emt 0:03:51]} 19. Qa4 {[%emt 0:08:01]}
Bf5 {[%emt 0:06:12]} 20. f3 {[%emt 0:13:05]} Qa2 {[%emt 0:06:50]} 21. e4 {
[%emt 0:01:56]} Nd5 {[%emt 0:08:13]} 22. Qe8+ {[%emt 0:03:49]} Rxe8 {[%emt 0:
00:00]} 23. Nxa2 {[%emt 0:00:02]} Bxg1 {[%emt 0:06:22]} 24. Rxg1 {[%emt 0:00:
00]} Ne7 {[%emt 0:02:35]} 25. exf5 {[%emt 0:03:09]} Nxf5 {[%emt 0:00:04]} 26.
Nc3 {[%emt 0:02:15]} Nd4 {[%emt 0:00:39]} 27. Rf1 {[%emt 0:00:38]} Nb3+ {
[%emt 0:00:36]} 28. Kc2 {[%emt 0:01:21]} Nd4+ {[%emt 0:00:33]} 29. Kd3 {
[%emt 0:00:47]} Re6 {[%emt 0:01:07]} 30. f4 {[%emt 0:01:09]} Rf6 {[%emt 0:00:
00]} 31. Ne4 {[%emt 0:01:24]} Re6 {[%emt 0:01:55]} 32. fxe5 {[%emt 0:01:31]}
dxe5 {[%emt 0:00:20]} 33. Rc1 {[%emt 0:02:33]} g6 {[%emt 0:01:10]} 34. Bh6 {
[%emt 0:00:32]} Re8 {[%emt 0:00:36]} 35. Nf6+ {[%emt 0:00:13]} Kh8 {[%emt 0:00:
00]} 36. Nxe8 {[%emt 0:00:00]} Nf5 {[%emt 0:00:22]} 37. Be3 {[%emt 0:02:05]}
Kg8 {[%emt 0:00:42]} 38. Rc8 {[%emt 0:00:36]} Ne7 {[%emt 0:00:17]} 39. Ra8 {
[%emt 0:01:17]} h5 {[%emt 0:00:31]} 40. Bg5 {[%emt 0:01:14]} Kf8 {[%emt 0:00:
00]} 41. Bh6+ {[%emt 0:31:15]} Kg8 {[%emt 0:30:32]} 42. Nf6# {[%emt 0:00:07]}
1-0

[Event "44th Chess Olympiad Women 2022"]
[Site "Chennai"]
[Date "2022.08.05"]
[Round "7.71"]
[White "Alazmi, Amani"]
[Black "Magne Kouokam Sylviane"]
[Result "1-0"]
[WhiteElo "1506"]
[BlackElo "1317"]
[Annotator "NA"]
[PlyCount "165"]
[EventDate "2022.??.??"]
[TimeControl "60"]

1. e4 {[%emt 0:00:04]} d5 {[%emt 0:00:17]} 2. exd5 {[%emt 0:00:07]} Nf6 {
[%emt 0:00:23]} 3. Bb5+ {[%emt 0:00:11]} Bd7 {[%emt 0:00:25]} 4. Bc4 {[%emt 0:
00:00]} c6 {[%emt 0:00:27]} 5. Nc3 {[%emt 0:06:37]} Bg4 {[%emt 0:03:40]} 6. f3
{[%emt 0:00:09]} Bh5 {[%emt 0:00:29]} 7. dxc6 {[%emt 0:00:27]} Nxc6 {[%emt 0:
00:00]} 8. Bb5 {[%emt 0:00:26]} a6 {[%emt 0:00:34]} 9. Bxc6+ {[%emt 0:00:10]}
bxc6 {[%emt 0:00:06]} 10. Nge2 {[%emt 0:00:07]} Qb6 {[%emt 0:00:34]} 11. d4 {
[%emt 0:01:18]} Rd8 {[%emt 0:01:17]} 12. b3 {[%emt 0:01:42]} e6 {[%emt 0:00:14]
} 13. Be3 {[%emt 0:00:19]} Bb4 {[%emt 0:01:21]} 14. O-O {[%emt 0:00:19]} O-O {
[%emt 0:00:54]} 15. Na4 {[%emt 0:00:22]} Qa7 {[%emt 0:01:31]} 16. c3 {[%emt 0:
00:00]} Nd5 {[%emt 0:00:52]} 17. Bf2 {[%emt 0:01:02]} Bd6 {[%emt 0:00:24]} 18.
c4 {[%emt 0:00:48]} Nf6 {[%emt 0:04:36]} 19. Qc2 {[%emt 0:01:17]} Bg6 {[%emt 0:
00:00]} 20. Qc1 {[%emt 0:00:39]} Qb8 {[%emt 0:00:30]} 21. g3 {[%emt 0:00:39]}
Bh5 {[%emt 0:01:24]} 22. Be1 {[%emt 0:01:15]} e5 {[%emt 0:01:47]} 23. Nac3 {
[%emt 0:00:51]} exd4 {[%emt 0:00:47]} 24. Nxd4 {[%emt 0:00:14]} Bc5 {[%emt 0:
00:00]} 25. Nce2 {[%emt 0:01:54]} Bxd4+ {[%emt 0:00:16]} 26. Nxd4 {[%emt 0:00:
00]} Rxd4 {[%emt 0:00:19]} 27. Bc3 {[%emt 0:01:00]} Rd6 {[%emt 0:02:12]} 28.
Kh1 {[%emt 0:00:08]} c5 {[%emt 0:00:35]} 29. Be5 {[%emt 0:00:07]} Rfd8 {
[%emt 0:03:01]} 30. Bxd6 {[%emt 0:03:44]} Rxd6 {[%emt 0:00:00]} 31. Qg5 {
[%emt 0:01:43]} Qb7 {[%emt 0:00:00]} 32. Qe3 {[%emt 0:01:50]} Re6 {[%emt 0:00:
00]} 33. Qd3 {[%emt 0:00:49]} Qd7 {[%emt 0:01:49]} 34. Qxd7 {[%emt 0:00:35]}
Nxd7 {[%emt 0:00:07]} 35. Rad1 {[%emt 0:00:24]} Re7 {[%emt 0:01:37]} 36. g4 {
[%emt 0:00:15]} Bg6 {[%emt 0:00:10]} 37. Rd5 {[%emt 0:00:29]} h6 {[%emt 0:00:
00]} 38. Rfd1 {[%emt 0:00:15]} Ne5 {[%emt 0:00:40]} 39. Re1 {[%emt 0:02:44]} f6
{[%emt 0:00:57]} 40. f4 {[%emt 0:00:12]} Nc6 {[%emt 0:00:34]} 41. Rxe7 {
[%emt 0:00:32]} Nxe7 {[%emt 0:00:07]} 42. Rxc5 {[%emt 0:30:45]} Be4+ {[%emt 0:
00:00]} 43. Kg1 {[%emt 0:00:30]} Nc6 {[%emt 0:00:11]} 44. Kf2 {[%emt 0:01:40]}
Kf7 {[%emt 0:00:39]} 45. Ke3 {[%emt 0:00:12]} Bh1 {[%emt 0:00:12]} 46. g5 {
[%emt 0:04:21]} Nb4 {[%emt 0:04:18]} 47. gxh6 {[%emt 0:01:27]} gxh6 {[%emt 0:
00:00]} 48. Ra5 {[%emt 0:00:49]} Kg6 {[%emt 0:00:16]} 49. a3 {[%emt 0:00:17]}
Nc2+ {[%emt 0:00:55]} 50. Kd3 {[%emt 0:03:59]} Ne1+ {[%emt 0:01:12]} 51. Ke2 {
[%emt 0:01:01]} Nf3 {[%emt 0:00:28]} 52. Rxa6 {[%emt 0:02:20]} Nd4+ {[%emt 0:
00:00]} 53. Kd3 {[%emt 0:02:36]} Nxb3 {[%emt 0:00:19]} 54. Kc3 {[%emt 0:00:26]}
Nc5 {[%emt 0:00:19]} 55. Ra5 {[%emt 0:00:22]} Nb7 {[%emt 0:00:59]} 56. Rb5 {
[%emt 0:03:55]} Nd6 {[%emt 0:00:24]} 57. Rb1 {[%emt 0:00:44]} Be4 {[%emt 0:00:
00]} 58. Rd1 {[%emt 0:01:15]} Nf5 {[%emt 0:00:33]} 59. c5 {[%emt 0:02:41]} Bc6
{[%emt 0:00:49]} 60. Kb4 {[%emt 0:00:35]} Ne3 {[%emt 0:00:24]} 61. Rd6 {
[%emt 0:00:56]} Bf3 {[%emt 0:14:43]} 62. c6 {[%emt 0:15:22]} Nd5+ {[%emt 0:00:
00]} 63. Kc5 {[%emt 0:00:34]} Ne7 {[%emt 0:00:32]} 64. c7 {[%emt 0:01:23]} Nc8
{[%emt 0:00:17]} 65. Rd8 {[%emt 0:02:33]} Bg4 {[%emt 0:01:38]} 66. a4 {[%emt 0:
00:00]} Kf7 {[%emt 0:02:02]} 67. a5 {[%emt 0:00:24]} Ke7 {[%emt 0:01:31]} 68.
a6 {[%emt 0:00:31]} Na7 {[%emt 0:03:32]} 69. Kb6 {[%emt 0:00:38]} Nc8+ {
[%emt 0:05:51]} 70. Kb7 {[%emt 0:00:16]} Nd6+ {[%emt 0:00:37]} 71. Kb8 {
[%emt 0:00:19]} Nb5 {[%emt 0:05:44]} 72. c8=Q {[%emt 0:00:22]} Bxc8 {[%emt 0:
00:00]} 73. Rxc8 {[%emt 0:00:21]} Kd7 {[%emt 0:01:04]} 74. Rh8 {[%emt 0:00:18]}
Ke7 {[%emt 0:01:44]} 75. Rxh6 {[%emt 0:00:12]} Kf7 {[%emt 0:00:08]} 76. Rh5 {
[%emt 0:00:19]} Nd6 {[%emt 0:02:18]} 77. a7 {[%emt 0:00:15]} Kg6 {[%emt 0:00:
00]} 78. Rc5 {[%emt 0:00:18]} Ne4 {[%emt 0:00:13]} 79. Ra5 {[%emt 0:00:35]} Nf2
{[%emt 0:01:17]} 80. a8=Q {[%emt 0:00:10]} Ng4 {[%emt 0:00:07]} 81. Qe4+ {
[%emt 0:00:57]} Kh6 {[%emt 0:00:54]} 82. Qf5 {[%emt 0:00:25]} Ne3 {[%emt 0:00:
00]} 83. Qxf6+ {[%emt 0:00:13]} 1-0

[Event "44th Chess Olympiad Women 2022"]
[Site "Chennai"]
[Date "2022.08.05"]
[Round "7.71"]
[White "Tchouateu Tankeu Stephanie"]
[Black "Nema, Rabab Ahmed"]
[Result "0-1"]
[WhiteElo "1280"]
[BlackElo "1172"]
[Annotator "NA RC"]
[PlyCount "108"]
[EventDate "2022.??.??"]
[TimeControl "60"]

1. d4 {[%emt 0:00:04]} Nf6 {[%emt 0:00:04]} 2. c4 {[%emt 0:00:08]} g6 {[%emt 0:
00:00]} 3. Nc3 {[%emt 0:00:13]} Bg7 {[%emt 0:00:12]} 4. e4 {[%emt 0:00:08]} d6
{[%emt 0:00:21]} 5. Nf3 {[%emt 0:00:11]} O-O {[%emt 0:00:14]} 6. Be2 {[%emt 0:
00:00]} Nbd7 {[%emt 0:00:43]} 7. O-O {[%emt 0:01:37]} e5 {[%emt 0:00:37]} 8.
dxe5 {[%emt 0:02:54]} Nxe5 {[%emt 0:00:58]} 9. Bg5 {[%emt 0:01:54]} h6 {
[%emt 0:07:11]} 10. Bh4 {[%emt 0:00:43]} Qe8 {[%emt 0:07:09]} 11. h3 {[%emt 0:
00:00]} g5 {[%emt 0:02:50]} 12. Nxe5 {[%emt 0:08:03]} Qxe5 {[%emt 0:08:56]} 13.
Bg3 {[%emt 0:02:31]} Qc5 {[%emt 0:04:57]} 14. Na4 {[%emt 0:15:50]} Qc6 {
[%emt 0:03:48]} 15. e5 {[%emt 0:01:56]} dxe5 {[%emt 0:08:29]} 16. Bxe5 {
[%emt 0:01:35]} Re8 {[%emt 0:06:19]} 17. Bg3 {[%emt 0:05:24]} Rxe2 {[%emt 0:00:
00]} 18. Qxe2 {[%emt 0:05:12]} Qxa4 {[%emt 0:01:06]} 19. Bxc7 {[%emt 0:03:59]}
Be6 {[%emt 0:01:55]} 20. b3 {[%emt 0:03:52]} Qc6 {[%emt 0:02:15]} 21. Be5 {
[%emt 0:01:56]} Rd8 {[%emt 0:11:56]} 22. Rad1 {[%emt 0:03:23]} Rd7 {[%emt 0:00:
00]} 23. Rxd7 {[%emt 0:01:27]} Nxd7 {[%emt 0:00:40]} 24. Bxg7 {[%emt 0:00:39]}
Kxg7 {[%emt 0:00:09]} 25. Rd1 {[%emt 0:03:22]} Qc7 {[%emt 0:03:32]} 26. Rd3 {
[%emt 0:06:19]} Ne5 {[%emt 0:02:54]} 27. Rg3 {[%emt 0:05:43]} Ng6 {[%emt 0:00:
00]} 28. Qb2+ {[%emt 0:05:38]} Kh7 {[%emt 0:04:21]} 29. Qd4 {[%emt 0:01:16]}
Nf4 {[%emt 0:01:48]} 30. Qe4+ {[%emt 0:03:27]} Kh8 {[%emt 0:01:59]} 31. Qd4+ {
[%emt 0:01:55]} Kh7 {[%emt 0:00:37]} 32. Re3 {[%emt 0:01:23]} Qc6 {[%emt 0:00:
00]} 33. Qe4+ {[%emt 0:01:20]} Qxe4 {[%emt 0:00:19]} 34. Rxe4 {[%emt 0:00:08]}
Kg6 {[%emt 0:00:50]} 35. Kh2 {[%emt 0:02:50]} Kf6 {[%emt 0:01:03]} 36. c5 {
[%emt 0:00:49]} Bd5 {[%emt 0:00:49]} 37. Ra4 {[%emt 0:01:51]} a6 {[%emt 0:00:
00]} 38. f3 {[%emt 0:00:34]} Ke5 {[%emt 0:00:52]} 39. Kg3 {[%emt 0:00:47]} Bc6
{[%emt 0:00:38]} 40. Rb4 {[%emt 0:00:38]} Kd5 {[%emt 0:02:26]} 41. Kg4 {
[%emt 0:30:48]} Kxc5 {[%emt 0:30:08]} 42. a3 {[%emt 0:00:40]} b5 {[%emt 0:00:
00]} 43. Re4 {[%emt 0:02:02]} Bxe4 {[%emt 0:00:54]} 44. fxe4 {[%emt 0:00:06]}
Nxg2 {[%emt 0:02:00]} 45. Kf5 {[%emt 0:00:36]} Nf4 {[%emt 0:00:00]} 46. Kf6 {
[%emt 0:00:00]} Nxh3 {[%emt 0:00:00]} 47. Kxf7 {[%emt 0:00:00]} Kd4 {[%emt 0:
00:00]} 48. Kg6 {[%emt 0:00:00]} g4 {[%emt 0:00:00]} 49. Kh5 {[%emt 0:00:00]}
g3 {[%emt 0:00:00]} 50. Kg4 {[%emt 0:00:00]} g2 {[%emt 0:00:00]} 51. Kxh3 {
[%emt 0:00:00]} g1=Q {[%emt 0:00:12]} 52. Kh4 {[%emt 0:00:00]} Kxe4 {[%emt 0:
00:00]} 53. a4 {[%emt 0:00:00]} Kf4 {[%emt 0:00:00]} 54. Kh5 {[%emt 0:00:00]}
Qg5# {[%emt 0:00:00]} 0-1